Cogmind - Beta 15 @@@ ROGUE MODE // 2025.07.01 @ 18:54:40 Player: jumpy Result: Destroyed by G-47 Trooper with Particle Gun Performance ------------- Evolutions (0) 0 Regions Visited (2) 400 Robots Destroyed (10) 50 Value Destroyed (188) 188 Prototype IDs (0) 0 Alien Tech Used (0) 0 Bonus (0) 0 TOTAL SCORE: 638 Bonus ------- None Cogmind --------- Core Integrity 0/250 Matter 300/300 Energy 100/100 System Corruption 0% Temperature Cool (9) Movement Core (50) Location -10/Mines Parts ------- > --- POWER (1) -------- (None) > --- PROPULSION (2) --- (None) > --- UTILITY (2) ------ (None) > --- WEAPON (2) ------- (None) > --- INVENTORY (5) ---- Light Ion Engine Improved Terrain Scanner Seismic Detector Light Assault Rifle Mining Laser Peak State ------------ > --- POWER ------------ Ion Engine > --- PROPULSION ------- Light Treads Light Treads > --- UTILITY ---------- Small Storage Unit Seismic Detector > --- WEAPON ----------- Medium Laser Assault Rifle > --- INVENTORY -------- Light Ion Engine Light Treads Wheel Wheel Improved Terrain Scanner Seismic Detector Light Assault Rifle Mining Laser [Rating: 8] Favorites ----------- Power Ion Engine Engine Ion Engine Propulsion Light Treads Treads Light Treads Wheel Wheel Utility Seismic Detector Device Seismic Detector Storage Small Storage Unit Weapon Assault Rifle Energy Gun Medium Laser Ballistic Gun Assault Rifle Build | -11 -10 -10 ------- Run | Yrd Mat Min Slots Evolved . | . . . Power . | . . . Propulsion . | . . . Utility . | . . . Weapon . | . . . Parts Attached 12 | 9 3 . Power 2 | 2 . . Engine 2 | 2 . . Core . | . . . Reactor . | . . . Propulsion 4 | 2 2 . Treads 2 | 2 . . Leg . | . . . Wheel 2 | . 2 . Hover . | . . . Flight . | . . . Utility 3 | 2 1 . Device 1 | 1 . . Storage 2 | 1 1 . Processor . | . . . Hackware . | . . . Protection . | . . . Artifact . | . . . Weapon 3 | 3 . . Energy Gun 1 | 1 . . Energy Cannon . | . . . Ballistic Gun 2 | 2 . . Ballistic Cannon . | . . . Launcher . | . . . Special Weapon . | . . . Impact Weapon . | . . . Slashing Weapon . | . . . Piercing Weapon . | . . . Special Melee Weapon . | . . . Unidentified Prototypes . | . . . Parts Lost 5 | . . 5 Power 1 | . . 1 Propulsion 1 | . . 1 Utility 1 | . . 1 Weapon 2 | . . 2 Highest Loss Streak 4 | . . 4 To Critical Strikes . | . . . Average Backups 6 | 4 7 7 Power . | . 1 1 Propulsion 1 | 1 2 1 Utility 2 | . 2 2 Weapon 1 | 1 2 2 Tool/Special . | . . . Unused Backups 5 | . 1 4 Power . | . . . Propulsion 1 | . 1 . Utility 3 | . . 3 Weapon 1 | . . 1 Tool/Special . | . . . Average Slot Usage (%) 86 | . 100 66 Engine 12 | . 14 10 Treads 9 | . 15 . Wheel 15 | . 12 19 Device 11 | . 14 8 Storage 13 | . 14 11 Energy Gun 11 | . 14 7 Ballistic Gun 11 | . 14 8 Peak Build Rating 8 | 7 8 8 Average Rating 6 | 5 7 5 On Entrance 5 | . 7 8 Naked Turns 51 | . . 51 Heaviest Build 90 | 15 90 90 Greatest Support 40 | 40 40 20 Greatest Overweight (x) 8 | . 4 8 Average Overweight (x) 1 | . 1 2 Largest Inventory Capacity 25 | 8 25 25 Average Capacity 15 | 7 15 20 Most Carried 8 | 7 8 8 Average Carried 6 | 4 7 7 Final Capacity 25 | 8 25 5 Final Carried 8 | 7 8 5 Class Distribution -------------------- 100% | Mutant Dominant Class ---------------- Mutant | -10/Materials Mutant | -10/Mines Resources | -11 -10 -10 ----------- Run | Yrd Mat Min Matter Collected 445 | 323 122 . Remotely . | . . . Salvage Created 389 | 114 275 . Parts 28 | 9 19 . Haulers Intercepted 1 | . 1 . Recyclers Shooed . | . . . Parts Field Recycled . | . . . Retrieved Matter . | . . . Parts Self-Destructed . | . . . Prevented . | . . . Kills | -11 -10 -10 ------- Run | Yrd Mat Min Combat Hostiles Destroyed 4 | . 4 . Guns 4 | . 4 . Classes Destroyed 6 | 2 4 . Worker 1 | . 1 . Tunneler 2 | 2 . . Hauler 1 | . 1 . Recycler 1 | 1 . . Operator 1 | . 1 . Grunt 4 | . 4 . Best Kill Streak 3 | 1 3 . Combat Bots Only 2 | . 2 . Max Kills in Single Turn 1 | 1 1 . Gunslinging . | . . . Exploded . | . . . Melee . | . . . Uniques/NPCs Destroyed . | . . . Combat | -11 -10 -10 -------- Run | Yrd Mat Min Hostile Shots Fired 90 | . 33 57 Missed 31 | . 10 21 Hits 59 | . 23 36 Projectile 59 | . 23 36 Critical Strikes 1 | . . 1 Damage Taken 745 | . 281 464 Core 250 | . 56 194 Absorbed by Shields . | . . . Core Remaining (%) 100 | 100 . . Volleys Fired 42 | 11 31 . Largest 2 | 2 2 . Hottest 70 | 70 70 . Shots Fired 84 | 22 62 . Gun 84 | 22 62 . Cannon . | . . . Launcher . | . . . Special . | . . . Kinetic 42 | 11 31 . Thermal 42 | 11 31 . Explosive . | . . . Electromagnetic . | . . . Robot Hit Streak 7 | 3 7 . Robot Miss Streak 4 | 3 4 . Penetration Max . | . . . Secondary Targets 1 | . 1 . Max Gunslinging Chain 1 | . 1 . Shots Hit Robots 45 | 11 34 . Core Hits 20 | 4 16 . Critical Kills . | . . . Critical Parts Destroyed . | . . . Critical Strikes 2 | . 2 . Burn 2 | . 2 . Melee Attacks . | . . . Impact . | . . . Slashing . | . . . Piercing . | . . . Sneak Attacks . | . . . Combat Hostiles . | . . . Follow-up Attacks . | . . . Damage Inflicted 581 | 143 427 11 Guns 570 | 143 427 . Cannons . | . . . Explosions . | . . . Melee . | . . . Ramming 11 | . . 11 Kinetic 331 | 105 226 . Thermal 239 | 38 201 . Explosive . | . . . Electromagnetic . | . . . Impact . | . . . Slashing . | . . . Piercing . | . . . Highest Corruption . | . . . Average Corruption . | . . . Corruption Purged . | . . . Corruption Blocked . | . . . Overload Shots . | . . . Overflow Damage . | . . . Projectiles . | . . . Explosions . | . . . Melee . | . . . Knockbacks . | . . . Impact . | . . . Kinetic . | . . . Secondary . | . . . Self-Inflicted Damage 5 | . . 5 Shots . | . . . Rammed 4 | . 1 3 Targets Rammed 4 | . 1 3 Kicked . | . . . Crushed . | . . . Highest Temperature 186 | 27 186 2 Average Temperature 58 | 10 73 2 Received Heat Transfer 432 | . 156 276 Siege Activations . | . . . Martial Activations . | . . . Shielding Activations . | . . . Robots Disrupted . | . . . Combat Hostiles . | . . . Robots Corrupted . | . . . Combat Hostiles . | . . . Parts Fried . | . . . Impact Corruptions . | . . . Robots Melted . | . . . Combat Hostiles . | . . . Parts Melted 2 | . 2 . Heat Transferred 851 | 111 740 . Parts Sabotaged . | . . . Parts Stolen . | . . . Parts Stripped . | . . . Power Chain Reactions . | . . . Alert | -11 -10 -10 ------- Run | Yrd Mat Min Maximum Alert Level . | . . . Low Security (%) 100 | 100 100 100 Level 1 . | . . . Level 2 . | . . . Level 3 . | . . . Level 4 . | . . . Level 5 . | . . . High Security . | . . . Max Security . | . . . Peak Influence 40 | 5 40 20 Initial . | . . . Average 4 | . 8 1 Influence Increases 162 | 15 117 30 Destroy 0b10 Robot/C 80 | . 80 . Destroy 0b10 Robot/NC 30 | 15 15 . Destroy Leader 22 | . 22 . Lose Combat Pursuer 30 | . . 30 Influence Decreases 152 | 15 117 20 Time Decay 152 | 15 117 20 Squads Dispatched 1 | . 1 . Investigation . | . . . Extermination . | . . . Reinforcement 1 | . 1 . Assault . | . . . Garrison . | . . . Intercept . | . . . Searches Triggered . | . . . Construction Impeded . | . . . Haulers Reinforced . | . . . Active Scanning Responses . | . . . Cargo Convoy Interrupts . | . . . Stealth | -11 -10 -10 --------- Run | Yrd Mat Min Distress Signals 1 | . 1 . Communications Jammed . | . . . Distress Signals . | . . . Times Spotted 15 | . 9 6 Peak Tracking Total 4 | . 3 4 Tactical Retreats 1 | . . 1 Traps | -11 -10 -10 ------- Run | Yrd Mat Min Traps Triggered . | . . . Indirectly . | . . . Trap Hack Attempts . | . . . Triggered . | . . . Disarmed . | . . . Reprogrammed . | . . . Reused . | . . . Traps Extracted . | . . . Installed . | . . . Triggered . | . . . Machines | -11 -10 -10 ---------- Run | Yrd Mat Min Machines Disabled . | . . . Max in Single Turn . | . . . Machines Repaired . | . . . Machines Dismantled . | . . . Machines Sabotaged . | . . . Overloaded Fab Kills . | . . . Hacking | -11 -10 -10 --------- Run | Yrd Mat Min Machines Accessed . | . . . Terminals . | . . . Fabricators . | . . . Repair Stations . | . . . Recycling Units . | . . . Scanalyzers . | . . . Garrison Access . | . . . Total Hacks . | . . . Successful . | . . . Failed . | . . . Catastrophic . | . . . Database Lockouts . | . . . Manual . | . . . Terminals . | . . . Fabricators . | . . . Repair Stations . | . . . Recycling Units . | . . . Scanalyzers . | . . . Garrison Access . | . . . Terminal Hacks . | . . . Fabricator Hacks . | . . . Repair Station Hacks . | . . . Recycling Unit Hacks . | . . . Scanalyzer . | . . . Garrison Access Hacks . | . . . Unauthorized Hacks . | . . . Terminals . | . . . Fabricators . | . . . Repair Stations . | . . . Recycling Units . | . . . Scanalyzers . | . . . Garrison Access . | . . . Data Cores Recovered 1 | . 1 . Used . | . . . Hacking Detections . | . . . Full Trace Events . | . . . Feedback Events . | . . . Feedback Blocked . | . . . Robot Schematics Acquired . | . . . Robots Built . | . . . Authchips . | . . . Time . | . . . Total Robot Build Rating . | . . . Part Schematics Acquired . | . . . Parts Built . | . . . Authchips . | . . . Time . | . . . Total Part Build Rating . | . . . Parts Repaired . | . . . Time . | . . . Parts Recycled . | . . . Recycled Matter . | . . . Retrieved Matter . | . . . Retrieved Components . | . . . Parts Scanalyzed . | . . . Part Schematics Acquired . | . . . Parts Damaged . | . . . Bothacking | -11 -10 -10 ------------ Run | Yrd Mat Min Used RIF Installer . | . . . Robots Hacked . | . . . Non-combat . | . . . Combat . | . . . Robot Hacks Applied . | . . . Relay Couplers Released . | . . . Fabnet Peak Effective % . | . . . Robots Rewired . | . . . Allies Hacked . | . . . Hacks Repelled . | . . . Allies | -11 -10 -10 -------- Run | Yrd Mat Min Total Allies . | . . . Largest Group . | . . . Highest-Rated Group . | . . . Highest-Rated Ally . | . . . Total Orders . | . . . Ally Attacks . | . . . Total Damage . | . . . Kills . | . . . Allies Corrupted . | . . . Allies Melted . | . . . Intel | -11 -10 -10 ------- Run | Yrd Mat Min Active Infowar (turns) 784 | 92 503 189 Seismic 784 | 92 503 189 Robot Analysis Total . | . . . Derelict Logs Recovered . | . . . Drone Launches . | . . . Drone Recoveries . | . . . Exploration | -11 -10 -10 ------------- Run | Yrd Mat Min Turns Passed 1078 | 247 503 328 Spaces Moved 550 | 125 230 195 Core 100 | 6 . 94 Treads 244 | 119 125 . Legs . | . . . Wheels 206 | . 105 101 Hover . | . . . Flight . | . . . Fastest Speed 50 | 50 140 50 Average Speed 135 | 154 150 105 Slowest Speed 200 | 160 160 200 Overloaded Moves . | . . . Propulsion Burnouts . | . . . Robots Hopped . | . . . Potential Cave-ins . | . . . Cave-ins Triggered . | . . . Exploration Rate (%) 29 | 7 42 38 Regions Visited 2 Branch Regions 1 Pre-discovered Areas . | . . . Known Exits Taken . | . . . Unknown Exits Taken 2 | 1 1 . Scrap Searched . | . . . Spaces Dug . | . . . Terrain Destroyed . | . . . Melee . | . . . Projectile . | . . . AOE . | . . . Terrain Rammed . | . . . Walls Destroyed . | . . . Machines Disabled . | . . . Actions | -11 -10 -10 --------- Run | Yrd Mat Min Total 793 | 152 323 318 Wait 175 | 2 55 118 Move 548 | 124 229 195 Hop . | . . . Pick Up 8 | 6 2 . Fast Attach 7 | 7 . . Attach . | . . . Detach . | . . . Swap 5 | 2 3 . Drop 4 | . 2 2 Fire 42 | 11 31 . Melee . | . . . Ram 3 | . . 3 Kick . | . . . Crush 1 | . 1 . Escape Stasis . | . . . Rewire . | . . . Trap . | . . . Miscellaneous . | . . . Route ------- -11/Scrapyard -10/Materials -10/Mines (discovered 1 exit: [*Mat]) History --------- Turn | Location | Event 58 | -11/Scrapyard | Discovered new exit (range 16) 248 | -11/Scrapyard | Entered Materials 306 | -10/Materials | Build established: Mutant 693 | -10/Materials | Discovered new exit (range 16) 751 | -10/Materials | Entered Mines 752 | -10/Mines | Assembled infested the area 911 | -10/Mines | Discovered new exit (range 5) 971 | -10/Mines | Lost 4 parts (1n1u2w) 1021 | -10/Mines | Core integrity fell below 50% 1053 | -10/Mines | Received a Rocket Launcher from a helpful Derelict 1067 | -10/Mines | Core integrity fell below 20% 1079 | -10/Mines | Destroyed by G-47 Trooper with Particle Gun Last Messages --------------- 01021_ R-06 Scavenger collects Lgt. Treads. 01028_ Dropped Wheel. 01040_ K-01 Serf collects debris. 01047_ A derelict emerges from the shadows. 01048_ V0-Z9I(g): "Some of my friends down here think you need a mining laser when you travel the depths." 01049_ V0-Z9I(g): "Pshh... whatever." 01050_ V0-Z9I(g): "Everyone knows a good old rocket launcher goes a long way." 01051_ V0-Z9I(g): "Need to get rid of a swarm? Done. Need a big hole in the wall? Done." 01052_ V0-Z9I(g): "Need a small hole in the wall? Leave that to the mining laser wimps, I say!" 01053_ V0-Z9I(g): "Would you like a rocket launcher? I know I would if I were you, so I'm going to lend you mine." 01053_ V0-Z9I(g) slips back into the shadows. 01064_ Slammed into G-47 Trooper. 01064_ Critical hit (Burn: +37). 01065_ Slammed into G-34 Mercenary. 01066_ Destabilizing: Core damaged (-5). Map ----- +----------------------------------------------------+ | ????????????????????????????????????????????? | | ????????????????????????????????????????????? | | ????????????????????????????????????????????? | | ???????????????????????????????????????????? | | ? ??????????????????????????????????????????? | | ??????????????????????????????????????????? | | ????????????????????????????????????????????? | | ????????????????????????????????????????????? | | ????????????????????????????????????????????? | | ????????????????????????????????????????????? | | ????????????????????????????????????????????? | | ????????????????????????????????????????????? | | ????????????????????????????????????????????? | | ????????????????????????????????????????????? | | ?????????????#??????????????????????????????? | | ????????????? ??????????????????????????????? | | ????????????? ??????????????????????????????? | | ????????????? ??????????????????????????????? | | ????????????# #?????????????????????????????? | | ????????????#%#?????????????????????????????? | | ????????????# #?????????####????????????????? | | ????????????#%#????????? #????????????????? | | ????????????# #?????????# #????????????????? | | ????????????# #?????????# #????????????????? | | ????????????# #####?????# #????????????????? | | ????????????# #?????#@ #????????????????? | | ????????????# # # #?????# #????????????????? | | ####????????# # # #?????# #????????????????? | | # ##???###?# # # #??#### ##???????????????? | | #??## ### # # #?## #???????????????? | | "" #### ## # # ### #???????????????? | | "" # # ] ##??????????????? | | "" ###"# #### #??????????????? | | #### #?# # #??## ##g #??????????????? | | = ##??## #?# # ????######g# #??????????????? | | ###???## ### # ?????????# ###??????????????? | | ?????## ## # ?????????# #????????????????? | | ?????# ## ##?????????# #????????????????? | | ????# ####??????????#%####????###??????? | | ????# #?????????????# % #??## ##?????? | | ????# ##?????????????#### #?## #?????? | | ????## #?????????????????# ### #?????? | | ?????# #?????????????????# ## ##????? | | ?????# #?????????????????# #????? | | ?????## ##?????????????????##### #???? | | ??????####??????????????????????### ##???? | | ???????????????????????????????????#####????? | | ????????????????????????????????????????????? | | ????????????????????????????????????????????? | | | +----------------------------------------------------+ Best States ------------- Heat Dissipation 25 Energy Generation 10 Energy Capacity 250 Matter Stores 300 Matter Capacity 300 Sight Range 16 Terrain Scan Density 10 Evasion (%) 50 Recoil Reduction 2 Item Schematics ----------------- None Robot Schematics ------------------ None Fabricated ------------ Nothing Repaired ---------- Nothing Alien Tech Used ----------------- None Achievements -------------- None Challenges ------------ None Game ------ Seed ModifiedTeleporterBallwheel Manual? 0 Play Time 00:06:05 Cumulative 129.0 hours Start 2025.07.01 @ 18:49:26 End 2025.07.01 @ 18:54:40 Sessions 1 Manual Loads 0 Difficulty Rogue Special Mode None Game No. 339 Rogue 339 Adventurer 0 Explorer 0 Win Type - Total 3 Types 2/0/1/0/0/0/0/0/0/0 Lore% 64 Gallery% 54 Achievement% 46 Wizard Run 0 Options --------- Layout 0 ASCII 0 Keyboard 0 Movement Numpad Keybinds 0 Fullscreen 2 Font 18/Terminus Map View 76x50 Zoom Use 0% Tactical HUD 1 Map Filters NONE Filters NONE Steam 1 RUN: 444401ae-ceae-4279-9262-7c9970d6cbb0